[Event "*** Titled Tuesday Blitz"]
[Site "Chess.com"]
[Date "2019.03.05"]
[Round "9"]
[White "Lennis93"]
[Black "zeitnot2006"]
[Result "0-1"]
[WhiteElo "2237"]
[BlackElo "2201"]
[TimeControl "180+2"]
[EndTime "15:11:23 PST"]
[Termination "zeitnot2006 won by checkmate"]

1. e4 {[%clk 0:03:01.4]} 1... g6 {[%clk 0:03:00.9]} 2. Nf3 {[%clk 0:03:01.5]}
2... Bg7 {[%clk 0:03:00.6]} 3. d4 {[%clk 0:03:02.2]} 3... c6 {[%clk 0:03:01.7]}
4. Nc3 {[%clk 0:03:02.6]} 4... d5 {[%clk 0:03:00.8]} 5. h3 {[%clk 0:03:03.6]}
5... Nh6 {[%clk 0:02:56.5]} 6. Bf4 {[%clk 0:03:03.7]} 6... dxe4 {[%clk
0:02:51.7]} 7. Nxe4 {[%clk 0:03:03.8]} 7... O-O {[%clk 0:02:49.8]} 8. Qd2 {[%clk
0:03:04.2]} 8... Nf5 {[%clk 0:02:50]} 9. O-O-O {[%clk 0:03:04.6]} 9... Nd6
{[%clk 0:02:44.3]} 10. Nc5 {[%clk 0:03:03.6]} 10... b6 {[%clk 0:02:41.2]} 11.
Nd3 {[%clk 0:03:03.8]} 11... Be6 {[%clk 0:02:35.4]} 12. Kb1 {[%clk 0:03:03.2]}
12... Nd7 {[%clk 0:02:30.9]} 13. Bh6 {[%clk 0:03:00.9]} 13... Nc4 {[%clk
0:02:25.4]} 14. Qc1 {[%clk 0:03:01.3]} 14... b5 {[%clk 0:02:17.9]} 15. h4 {[%clk
0:02:59.9]} 15... Qa5 {[%clk 0:02:15]} 16. a3 {[%clk 0:02:41.7]} 16... Bxh6
{[%clk 0:01:39]} 17. Qxh6 {[%clk 0:02:41.1]} 17... Nxa3+ {[%clk 0:01:38.6]} 18.
bxa3 {[%clk 0:02:41.4]} 18... Qxa3 {[%clk 0:01:39.3]} 19. c4 {[%clk 0:02:11.9]}
19... bxc4 {[%clk 0:01:19.1]} 20. Kc2 {[%clk 0:02:01.8]} 20... Qa2+ {[%clk
0:00:53.9]} 21. Kc1 {[%clk 0:01:43.1]} 21... Rab8 {[%clk 0:00:38]} 22. Nd2
{[%clk 0:00:52.1]} 22... cxd3 {[%clk 0:00:28.9]} 23. Bxd3 {[%clk 0:00:48.4]}
23... Qb2# {[%clk 0:00:27.8]} 0-1

[Event "*** Titled Tuesday Blitz"]
[Site "Chess.com"]
[Date "2019.03.05"]
[Round "9"]
[White "Cryptinz"]
[Black "Atanejhad"]
[Result "1-0"]
[WhiteElo "2324"]
[BlackElo "2232"]
[TimeControl "180+2"]
[EndTime "15:11:30 PST"]
[Termination "Cryptinz won by resignation"]

1. e4 {[%clk 0:03:01.9]} 1... c5 {[%clk 0:02:57.6]} 2. Nf3 {[%clk 0:03:02.2]}
2... g6 {[%clk 0:02:49.2]} 3. d4 {[%clk 0:03:02.6]} 3... cxd4 {[%clk 0:02:51.1]}
4. Nxd4 {[%clk 0:03:03.5]} 4... Nc6 {[%clk 0:02:52.1]} 5. Nc3 {[%clk 0:03:04.5]}
5... Bg7 {[%clk 0:02:52.4]} 6. Be3 {[%clk 0:03:01.5]} 6... Nf6 {[%clk 0:02:48]}
7. Nb3 {[%clk 0:03:01.3]} 7... O-O {[%clk 0:02:48]} 8. Be2 {[%clk 0:03:01.8]}
8... d6 {[%clk 0:02:49.3]} 9. O-O {[%clk 0:03:02.1]} 9... Be6 {[%clk 0:02:50.7]}
10. h3 {[%clk 0:02:57]} 10... Qc8 {[%clk 0:02:50.3]} 11. Qd2 {[%clk 0:02:56.1]}
11... Rd8 {[%clk 0:02:50.4]} 12. Nd5 {[%clk 0:02:56.6]} 12... Nxe4 {[%clk
0:02:49]} 13. Qd3 {[%clk 0:02:51]} 13... Bxd5 {[%clk 0:02:38.2]} 14. Qxd5 {[%clk
0:02:51.1]} 14... Qf5 {[%clk 0:02:19.5]} 15. Qd3 {[%clk 0:02:41.1]} 15... Bxb2
{[%clk 0:02:17.7]} 16. Bg4 {[%clk 0:02:37.5]} 16... Qe5 {[%clk 0:02:09.7]} 17.
f4 {[%clk 0:02:37.3]} 17... Qc3 {[%clk 0:01:59.3]} 18. Qxe4 {[%clk 0:02:38.3]}
18... Bxa1 {[%clk 0:01:59.4]} 19. Rxa1 {[%clk 0:02:37.7]} 19... d5 {[%clk
0:02:00.3]} 20. Qf3 {[%clk 0:02:15.8]} 20... d4 {[%clk 0:02:00.7]} 21. Bd2
{[%clk 0:02:16.6]} 21... Qc4 {[%clk 0:01:45]} 22. Qd3 {[%clk 0:02:08.3]} 22...
Qxd3 {[%clk 0:01:24.9]} 23. cxd3 {[%clk 0:02:10.2]} 23... e5 {[%clk 0:01:26.2]}
24. Bf3 {[%clk 0:01:59.4]} 24... exf4 {[%clk 0:01:25.3]} 25. Bxf4 {[%clk
0:02:01.3]} 25... Rac8 {[%clk 0:01:26]} 26. Nc5 {[%clk 0:01:52.6]} 26... Nb4
{[%clk 0:01:25.8]} 27. Nxb7 {[%clk 0:01:53]} 27... Rd7 {[%clk 0:01:24.6]} 28.
Nd6 {[%clk 0:01:38.8]} 28... Rcd8 {[%clk 0:01:16.4]} 29. Ne4 {[%clk 0:01:39.7]}
29... Nd5 {[%clk 0:00:52]} 30. Bg5 {[%clk 0:01:39.8]} 30... Rb8 {[%clk
0:00:48.2]} 31. Nf6+ {[%clk 0:01:39.9]} 31... Nxf6 {[%clk 0:00:48.9]} 32. Bxf6
{[%clk 0:01:41.8]} 32... Rc8 {[%clk 0:00:24.6]} 33. Bg4 {[%clk 0:01:41.3]} 1-0

[Event "*** Titled Tuesday Blitz"]
[Site "Chess.com"]
[Date "2019.03.05"]
[Round "9"]
[White "nochewycandy"]
[Black "Jenia84"]
[Result "0-1"]
[WhiteElo "2370"]
[BlackElo "2200"]
[TimeControl "180+2"]
[EndTime "15:11:33 PST"]
[Termination "Jenia84 won by resignation"]

1. e4 {[%clk 0:03:01.9]} 1... e5 {[%clk 0:02:57.4]} 2. Nc3 {[%clk 0:03:02.5]}
2... Nf6 {[%clk 0:02:56.8]} 3. f4 {[%clk 0:03:03.8]} 3... d5 {[%clk 0:02:56]} 4.
fxe5 {[%clk 0:03:04.7]} 4... Nxe4 {[%clk 0:02:56.1]} 5. Qf3 {[%clk 0:03:06.3]}
5... Nxc3 {[%clk 0:02:35.5]} 6. dxc3 {[%clk 0:03:08.2]} 6... Be6 {[%clk
0:02:35.8]} 7. Ne2 {[%clk 0:03:06.6]} 7... c5 {[%clk 0:02:33.4]} 8. Nf4 {[%clk
0:03:04.3]} 8... Nc6 {[%clk 0:02:34.7]} 9. Bb5 {[%clk 0:03:03.6]} 9... Be7
{[%clk 0:02:33.6]} 10. O-O {[%clk 0:03:00.9]} 10... Qd7 {[%clk 0:02:33.8]} 11.
Qg3 {[%clk 0:03:00.7]} 11... g6 {[%clk 0:02:24.2]} 12. Nxe6 {[%clk 0:03:01.3]}
12... Qxe6 {[%clk 0:02:21.5]} 13. Bg5 {[%clk 0:02:59.7]} 13... a6 {[%clk
0:01:51.2]} 14. Bxc6+ {[%clk 0:03:00.2]} 14... bxc6 {[%clk 0:01:48.3]} 15. Bf6
{[%clk 0:02:58.6]} 15... O-O {[%clk 0:01:38.3]} 16. Rae1 {[%clk 0:02:48.8]}
16... Rfe8 {[%clk 0:01:36.5]} 17. Qg5 {[%clk 0:02:37.3]} 17... Rab8 {[%clk
0:01:20.2]} 18. b3 {[%clk 0:02:38.3]} 18... c4 {[%clk 0:01:19]} 19. Rf4 {[%clk
0:02:36.9]} 19... cxb3 {[%clk 0:01:16.3]} 20. axb3 {[%clk 0:02:30.4]} 20... Bxf6
{[%clk 0:01:16.3]} 21. Rxf6 {[%clk 0:02:28.2]} 21... Qe7 {[%clk 0:01:16.4]} 22.
h4 {[%clk 0:02:19.4]} 22... Qc5+ {[%clk 0:01:13.8]} 23. Kh2 {[%clk 0:02:19.9]}
23... Qxc3 {[%clk 0:01:13.3]} 24. Re3 {[%clk 0:02:20.9]} 24... Qxc2 {[%clk
0:01:09.7]} 25. e6 {[%clk 0:02:21.7]} 25... Rxe6 {[%clk 0:01:07.3]} 26. Rexe6
{[%clk 0:02:21.9]} 26... fxe6 {[%clk 0:01:08.4]} 27. Rxe6 {[%clk 0:02:22.4]}
27... Qf2 {[%clk 0:00:59.9]} 28. Qe5 {[%clk 0:02:21.2]} 28... Qxh4+ {[%clk
0:00:59.1]} 29. Kg1 {[%clk 0:02:22.5]} 29... Rf8 {[%clk 0:00:51.4]} 30. Re7
{[%clk 0:02:16.6]} 30... Qf2+ {[%clk 0:00:51]} 31. Kh1 {[%clk 0:02:17.3]} 31...
Qf1+ {[%clk 0:00:51.2]} 32. Kh2 {[%clk 0:02:18.2]} 32... Qf4+ {[%clk 0:00:51.9]}
33. Qxf4 {[%clk 0:02:18]} 33... Rxf4 {[%clk 0:00:52.4]} 34. Re6 {[%clk
0:02:19.8]} 34... c5 {[%clk 0:00:52]} 35. Rxa6 {[%clk 0:02:20.8]} 35... c4
{[%clk 0:00:49.8]} 36. bxc4 {[%clk 0:02:21.2]} 36... dxc4 {[%clk 0:00:50.2]} 37.
Kg3 {[%clk 0:02:21.8]} 37... Rd4 {[%clk 0:00:50]} 38. Ra7 {[%clk 0:02:22.4]}
38... h5 {[%clk 0:00:48.8]} 39. Rc7 {[%clk 0:02:22.9]} 39... Rg4+ {[%clk
0:00:47.7]} 40. Kf3 {[%clk 0:02:23.9]} 40... Kf8 {[%clk 0:00:49.2]} 41. g3
{[%clk 0:02:21.5]} 41... Ke8 {[%clk 0:00:50.4]} 42. Kf2 {[%clk 0:02:20]} 42...
Kd8 {[%clk 0:00:50.6]} 43. Ra7 {[%clk 0:02:18]} 43... c3 {[%clk 0:00:50.4]} 44.
Ra3 {[%clk 0:02:06.2]} 44... Rc4 {[%clk 0:00:50.1]} 45. Ra1 {[%clk 0:02:07.2]}
45... c2 {[%clk 0:00:50.5]} 46. Rc1 {[%clk 0:02:08.9]} 46... Ke7 {[%clk
0:00:51.6]} 47. Kf3 {[%clk 0:02:10.8]} 47... Kf6 {[%clk 0:00:52.5]} 48. Kg2
{[%clk 0:02:09.6]} 48... Kg5 {[%clk 0:00:53.4]} 49. Kf3 {[%clk 0:02:11.1]} 49...
Rc3+ {[%clk 0:00:53.6]} 50. Kg2 {[%clk 0:02:12.1]} 50... Kg4 {[%clk 0:00:54.7]}
0-1

[Event "*** Titled Tuesday Blitz"]
[Site "Chess.com"]
[Date "2019.03.05"]
[Round "9"]
[White "Rashad_Zeynalli"]
[Black "LawrenceTrent"]
[Result "1-0"]
[WhiteElo "2424"]
[BlackElo "2524"]
[TimeControl "180+2"]
[EndTime "15:11:35 PST"]
[Termination "Rashad_Zeynalli won by resignation"]

1. e4 {[%clk 0:03:01.9]} 1... g6 {[%clk 0:03:00.9]} 2. d4 {[%clk 0:03:02.3]}
2... Bg7 {[%clk 0:03:01.8]} 3. Nc3 {[%clk 0:03:03.9]} 3... d6 {[%clk 0:03:03.5]}
4. f4 {[%clk 0:03:05.2]} 4... Nd7 {[%clk 0:03:03.3]} 5. Nf3 {[%clk 0:03:04.1]}
5... a6 {[%clk 0:03:02.9]} 6. Bd3 {[%clk 0:03:03.5]} 6... b5 {[%clk 0:03:03.5]}
7. e5 {[%clk 0:03:03.4]} 7... Nb6 {[%clk 0:03:00.4]} 8. a4 {[%clk 0:02:51.8]}
8... b4 {[%clk 0:03:00.2]} 9. Ne4 {[%clk 0:02:53.2]} 9... a5 {[%clk 0:02:56.5]}
10. O-O {[%clk 0:02:48.1]} 10... Nh6 {[%clk 0:02:53.5]} 11. Bb5+ {[%clk
0:02:34.7]} 11... Bd7 {[%clk 0:02:50.7]} 12. e6 {[%clk 0:02:35.8]} 12... fxe6
{[%clk 0:02:51.6]} 13. Nfg5 {[%clk 0:02:32.3]} 13... Bxb5 {[%clk 0:02:47.2]} 14.
Nxe6 {[%clk 0:02:30]} 14... Qd7 {[%clk 0:02:47.3]} 15. Nxg7+ {[%clk 0:02:28.2]}
15... Kf7 {[%clk 0:02:48.3]} 16. axb5 {[%clk 0:02:27.6]} 16... Kxg7 {[%clk
0:02:49.1]} 17. d5 {[%clk 0:02:14.2]} 17... Rhf8 {[%clk 0:02:45.6]} 18. Ng5
{[%clk 0:02:04.9]} 18... Kg8 {[%clk 0:02:40.2]} 19. Ne6 {[%clk 0:02:04.8]} 19...
Rf5 {[%clk 0:02:41]} 20. Qd4 {[%clk 0:02:03.1]} 20... Rf7 {[%clk 0:02:34]} 21.
f5 {[%clk 0:02:03.4]} 21... Nxf5 {[%clk 0:02:31.1]} 22. Rxf5 {[%clk 0:02:03.4]}
22... gxf5 {[%clk 0:02:32.2]} 23. Be3 {[%clk 0:01:58.8]} 23... Rf6 {[%clk
0:02:21.8]} 24. Rf1 {[%clk 0:01:53.4]} 24... Rb8 {[%clk 0:02:08.3]} 25. Rf3
{[%clk 0:01:46.9]} 25... Nxd5 {[%clk 0:02:08.3]} 26. Rg3+ {[%clk 0:01:41.3]}
26... Kh8 {[%clk 0:02:08.3]} 27. Ng5 {[%clk 0:01:31.4]} 27... e6 {[%clk
0:01:52.4]} 28. Rh3 {[%clk 0:01:20.9]} 28... Rxb5 {[%clk 0:01:23.4]} 29. Nxh7
{[%clk 0:01:16.7]} 29... Kg7 {[%clk 0:01:18.3]} 30. Nxf6 {[%clk 0:01:07.2]}
30... Nxf6 {[%clk 0:01:16.8]} 31. Bg5 {[%clk 0:01:08.2]} 31... e5 {[%clk
0:01:16]} 32. Qh4 {[%clk 0:01:08.5]} 32... Kf7 {[%clk 0:01:12.8]} 33. Bxf6
{[%clk 0:01:06.2]} 33... Qc6 {[%clk 0:01:14.2]} 34. Qh7+ {[%clk 0:01:01.1]}
34... Ke6 {[%clk 0:01:15.4]} 35. Qg8+ {[%clk 0:00:57.1]} 1-0

[Event "*** Titled Tuesday Blitz"]
[Site "Chess.com"]
[Date "2019.03.05"]
[Round "9"]
[White "1stSecond"]
[Black "7Madman"]
[Result "1-0"]
[WhiteElo "2749"]
[BlackElo "2527"]
[TimeControl "180+2"]
[EndTime "15:11:58 PST"]
[Termination "1stSecond won by resignation"]

1. g3 {[%clk 0:03:01.9]} 1... Nf6 {[%clk 0:02:59.1]} 2. Bg2 {[%clk 0:03:02.9]}
2... e6 {[%clk 0:03:01]} 3. c4 {[%clk 0:03:03.6]} 3... d5 {[%clk 0:03:01.6]} 4.
Nf3 {[%clk 0:03:04.2]} 4... Be7 {[%clk 0:03:02.3]} 5. d4 {[%clk 0:03:05.3]} 5...
O-O {[%clk 0:03:03.2]} 6. O-O {[%clk 0:03:07]} 6... c6 {[%clk 0:03:03.7]} 7. Bf4
{[%clk 0:03:05.7]} 7... b6 {[%clk 0:03:04.7]} 8. Nc3 {[%clk 0:03:06.1]} 8... Bb7
{[%clk 0:03:05.7]} 9. Rc1 {[%clk 0:03:04.8]} 9... Nbd7 {[%clk 0:03:05]} 10. cxd5
{[%clk 0:03:06]} 10... cxd5 {[%clk 0:03:04.2]} 11. Nb5 {[%clk 0:03:05.4]} 11...
Ne4 {[%clk 0:02:52.5]} 12. Nd2 {[%clk 0:02:37.4]} 12... Ndf6 {[%clk 0:02:49]}
13. Nxe4 {[%clk 0:02:16.9]} 13... Nxe4 {[%clk 0:02:49]} 14. Rc7 {[%clk
0:02:18.4]} 14... Ba6 {[%clk 0:02:47.9]} 15. Nxa7 {[%clk 0:02:19.6]} 15... Bd6
{[%clk 0:02:40.4]} 16. Bxd6 {[%clk 0:02:15.3]} 16... Qxd6 {[%clk 0:02:36.2]} 17.
Qc2 {[%clk 0:02:15]} 17... Bxe2 {[%clk 0:02:11.2]} 18. Rc1 {[%clk 0:02:15]}
18... Ba6 {[%clk 0:01:55.5]} 19. a4 {[%clk 0:02:03.9]} 19... Nf6 {[%clk
0:01:45.5]} 20. Qb3 {[%clk 0:01:22.7]} 20... Bc4 {[%clk 0:01:36.2]} 21. R1xc4
{[%clk 0:01:11.2]} 21... dxc4 {[%clk 0:01:37.3]} 22. Qxc4 {[%clk 0:01:13.1]}
22... Rad8 {[%clk 0:01:32.6]} 23. Nb5 {[%clk 0:01:13.3]} 23... Qxc7 {[%clk
0:01:07.4]} 24. Qxc7 {[%clk 0:01:14.1]} 24... Rc8 {[%clk 0:01:05]} 25. Qxb6
{[%clk 0:01:14.8]} 25... Rc1+ {[%clk 0:01:06.9]} 26. Bf1 {[%clk 0:01:15.9]}
26... Ne4 {[%clk 0:01:08.8]} 27. Kg2 {[%clk 0:01:17]} 27... Rc2 {[%clk
0:01:08.2]} 28. d5 {[%clk 0:01:17]} 28... exd5 {[%clk 0:01:02.1]} 29. Bd3 {[%clk
0:01:18]} 29... Rxb2 {[%clk 0:01:03.5]} 30. Bxe4 {[%clk 0:01:18.4]} 30... dxe4
{[%clk 0:01:05.4]} 31. Qd4 {[%clk 0:01:17.3]} 31... Re2 {[%clk 0:01:00.9]} 32.
Nc3 {[%clk 0:01:17.8]} 32... Rc2 {[%clk 0:01:01.2]} 33. Nxe4 {[%clk 0:01:18.9]}
33... h6 {[%clk 0:01:02.4]} 34. Qd5 {[%clk 0:01:16.6]} 34... Rb8 {[%clk
0:00:59.3]} 35. a5 {[%clk 0:01:16.3]} 35... Rbb2 {[%clk 0:01:00.5]} 36. h4
{[%clk 0:01:10.4]} 36... Ra2 {[%clk 0:01:02.4]} 37. h5 {[%clk 0:01:11.5]} 37...
Re2 {[%clk 0:01:01.4]} 38. Kh3 {[%clk 0:01:11.2]} 38... Reb2 {[%clk 0:01:01.6]}
39. f4 {[%clk 0:00:59.6]} 39... Kh7 {[%clk 0:00:55.6]} 40. Qxf7 {[%clk
0:00:59.5]} 1-0

[Event "*** Titled Tuesday Blitz"]
[Site "Chess.com"]
[Date "2019.03.05"]
[Round "9"]
[White "tteshan"]
[Black "CzechmVIII"]
[Result "1-0"]
[WhiteElo "2203"]
[BlackElo "2121"]
[TimeControl "180+2"]
[EndTime "15:12:05 PST"]
[Termination "tteshan won on time"]

1. e4 {[%clk 0:03:01.9]} 1... c5 {[%clk 0:03:00.8]} 2. c3 {[%clk 0:03:01.1]}
2... d5 {[%clk 0:03:00.9]} 3. exd5 {[%clk 0:03:01.9]} 3... Nf6 {[%clk
0:03:01.9]} 4. c4 {[%clk 0:02:58.1]} 4... e6 {[%clk 0:03:01.4]} 5. dxe6 {[%clk
0:02:51.5]} 5... Bxe6 {[%clk 0:03:02.1]} 6. Nc3 {[%clk 0:02:51]} 6... Nc6 {[%clk
0:03:00.7]} 7. Nf3 {[%clk 0:02:51.4]} 7... Qd7 {[%clk 0:02:40.5]} 8. d3 {[%clk
0:02:48.8]} 8... O-O-O {[%clk 0:02:41.1]} 9. Be3 {[%clk 0:02:30.4]} 9... Ng4
{[%clk 0:02:18.8]} 10. Be2 {[%clk 0:02:27.1]} 10... Nb4 {[%clk 0:01:56.6]} 11.
d4 {[%clk 0:02:17.3]} 11... Bf5 {[%clk 0:01:39.8]} 12. Rc1 {[%clk 0:02:10.1]}
12... Nxe3 {[%clk 0:01:20.7]} 13. fxe3 {[%clk 0:02:10.2]} 13... cxd4 {[%clk
0:01:22]} 14. exd4 {[%clk 0:02:05.2]} 14... Nc6 {[%clk 0:00:52.9]} 15. d5 {[%clk
0:01:58.1]} 15... Na5 {[%clk 0:00:22.4]} 16. O-O {[%clk 0:01:48.8]} 16... Bc5+
{[%clk 0:00:23.5]} 17. Kh1 {[%clk 0:01:49.2]} 17... Rhe8 {[%clk 0:00:20.9]} 18.
Nd4 {[%clk 0:01:46.6]} 18... Bg6 {[%clk 0:00:18.2]} 19. Bg4 {[%clk 0:01:41.1]}
19... f5 {[%clk 0:00:16.4]} 20. Nxf5 {[%clk 0:01:36.6]} 20... Qc7 {[%clk
0:00:07.5]} 21. Nb5 {[%clk 0:01:28.1]} 21... Qb6 {[%clk 0:00:06.7]} 22. Nxg7+
{[%clk 0:01:04.8]} 22... Kb8 {[%clk 0:00:06.3]} 23. Nxe8 {[%clk 0:01:06.2]}
23... Rxe8 {[%clk 0:00:07.7]} 24. Qf3 {[%clk 0:00:49.2]} 24... a6 {[%clk
0:00:06.6]} 25. Nc3 {[%clk 0:00:45.4]} 1-0

[Event "*** Titled Tuesday Blitz"]
[Site "Chess.com"]
[Date "2019.03.05"]
[Round "9"]
[White "Blitzstream"]
[Black "BlueWizzard"]
[Result "0-1"]
[WhiteElo "2571"]
[BlackElo "2684"]
[TimeControl "180+2"]
[EndTime "15:12:10 PST"]
[Termination "BlueWizzard won on time"]

1. e4 {[%clk 0:03:01.9]} 1... c5 {[%clk 0:03:00.3]} 2. Nf3 {[%clk 0:03:03.1]}
2... g6 {[%clk 0:03:02.2]} 3. h4 {[%clk 0:03:02.9]} 3... Nf6 {[%clk 0:03:01.5]}
4. e5 {[%clk 0:03:03.4]} 4... Nh5 {[%clk 0:03:02.5]} 5. d4 {[%clk 0:03:01.4]}
5... cxd4 {[%clk 0:03:03.2]} 6. g4 {[%clk 0:03:02.2]} 6... Ng7 {[%clk
0:03:02.8]} 7. Qxd4 {[%clk 0:03:00.7]} 7... Nc6 {[%clk 0:03:01.8]} 8. Qe4 {[%clk
0:03:01.1]} 8... h5 {[%clk 0:02:54.2]} 9. gxh5 {[%clk 0:02:55.8]} 9... Rxh5
{[%clk 0:02:54.2]} 10. Nc3 {[%clk 0:02:51.9]} 10... d6 {[%clk 0:02:51.1]} 11.
exd6 {[%clk 0:02:48.5]} 11... Bf5 {[%clk 0:02:51.7]} 12. Qa4 {[%clk 0:02:00.7]}
12... Qxd6 {[%clk 0:02:49.3]} 13. Bf4 {[%clk 0:02:01.3]} 13... Qe6+ {[%clk
0:02:48.9]} 14. Be2 {[%clk 0:02:01.7]} 14... O-O-O {[%clk 0:02:45.1]} 15. Ng5
{[%clk 0:01:50.8]} 15... Rxg5 {[%clk 0:02:45.3]} 16. hxg5 {[%clk 0:01:44.3]}
16... Rd4 {[%clk 0:02:45.3]} 17. Qb5 {[%clk 0:01:31.5]} 17... Rxf4 {[%clk
0:02:17.3]} 18. Rh8 {[%clk 0:01:24.8]} 18... Rd4 {[%clk 0:01:53.5]} 19. Rxf8+
{[%clk 0:01:22.7]} 19... Kc7 {[%clk 0:01:54.7]} 20. Rd1 {[%clk 0:01:18]} 20...
Rxd1+ {[%clk 0:01:46.7]} 21. Kxd1 {[%clk 0:01:17]} 21... Bxc2+ {[%clk
0:01:47.5]} 22. Kc1 {[%clk 0:01:08.6]} 22... Bf5 {[%clk 0:01:38.7]} 23. Nd5+
{[%clk 0:00:50.2]} 23... Kd6 {[%clk 0:01:39]} 24. Ne3 {[%clk 0:00:37.2]} 24...
Qe4 {[%clk 0:01:29.3]} 25. Qxb7 {[%clk 0:00:19.9]} 25... Ne6 {[%clk 0:01:20.6]}
26. Rc8 {[%clk 0:00:19.4]} 26... Ned4 {[%clk 0:01:10.9]} 27. Nc4+ {[%clk
0:00:12.5]} 27... Ke6 {[%clk 0:01:11.8]} 28. Rxc6+ {[%clk 0:00:05.7]} 28... Nxc6
{[%clk 0:01:12.2]} 29. Qc8+ {[%clk 0:00:06.5]} 29... Kd5 {[%clk 0:01:10.7]} 30.
Bf3 {[%clk 0:00:03.5]} 30... Bxc8 {[%clk 0:01:07.3]} 0-1

[Event "*** Titled Tuesday Blitz"]
[Site "Chess.com"]
[Date "2019.03.05"]
[Round "9"]
[White "PawnEatingZombie"]
[Black "MFguimaraes"]
[Result "0-1"]
[WhiteElo "2119"]
[BlackElo "2298"]
[TimeControl "180+2"]
[EndTime "15:12:19 PST"]
[Termination "MFguimaraes won by resignation"]

1. d4 {[%clk 0:03:01.9]} 1... d5 {[%clk 0:03:00.7]} 2. c4 {[%clk 0:03:02.7]}
2... c6 {[%clk 0:03:01.5]} 3. Nc3 {[%clk 0:03:04]} 3... dxc4 {[%clk 0:03:02.7]}
4. e3 {[%clk 0:03:04.2]} 4... b5 {[%clk 0:03:03.8]} 5. a4 {[%clk 0:03:03.7]}
5... b4 {[%clk 0:03:05.2]} 6. Ne4 {[%clk 0:03:04.6]} 6... Bf5 {[%clk 0:02:57.8]}
7. Nc5 {[%clk 0:02:46]} 7... e5 {[%clk 0:02:45.4]} 8. Qf3 {[%clk 0:02:26.4]}
8... exd4 {[%clk 0:02:39.9]} 9. Qxf5 {[%clk 0:02:24.9]} 9... d3 {[%clk
0:02:26.4]} 10. Nxd3 {[%clk 0:02:12.1]} 10... cxd3 {[%clk 0:02:25.4]} 11. Bxd3
{[%clk 0:02:12.9]} 11... Nf6 {[%clk 0:02:22.6]} 12. Nf3 {[%clk 0:02:07.6]} 12...
Be7 {[%clk 0:02:23.6]} 13. Bc4 {[%clk 0:01:58.3]} 13... O-O {[%clk 0:02:17.6]}
14. O-O {[%clk 0:01:59]} 14... Nbd7 {[%clk 0:02:01.4]} 15. e4 {[%clk 0:01:59]}
15... Nb6 {[%clk 0:02:02]} 16. Ba6 {[%clk 0:01:43.2]} 16... Qd7 {[%clk
0:01:58.4]} 17. Qxd7 {[%clk 0:01:36.2]} 17... Nfxd7 {[%clk 0:02:00.3]} 18. Bf4
{[%clk 0:01:34]} 18... Nc5 {[%clk 0:01:59.6]} 19. a5 {[%clk 0:01:30.6]} 19...
Nxa6 {[%clk 0:01:58.4]} 20. axb6 {[%clk 0:01:31.4]} 20... axb6 {[%clk
0:01:59.8]} 21. Rfd1 {[%clk 0:01:23.7]} 21... Nc5 {[%clk 0:01:57.6]} 22. Rxa8
{[%clk 0:01:13.7]} 22... Rxa8 {[%clk 0:01:59.5]} 23. Ne5 {[%clk 0:01:14.7]}
23... Bf6 {[%clk 0:01:48.4]} 24. Nxc6 {[%clk 0:01:13.5]} 24... Bxb2 {[%clk
0:01:47.6]} 25. Nxb4 {[%clk 0:01:10.5]} 25... Nxe4 {[%clk 0:01:43.8]} 26. Nd5
{[%clk 0:01:04]} 26... Bd4 {[%clk 0:01:41.1]} 27. Be3 {[%clk 0:00:52.9]} 27...
Bxe3 {[%clk 0:01:40.5]} 28. Nxe3 {[%clk 0:00:51.3]} 28... b5 {[%clk 0:01:38]}
29. h4 {[%clk 0:00:47.8]} 29... b4 {[%clk 0:01:37.5]} 30. Rd4 {[%clk 0:00:37.1]}
30... b3 {[%clk 0:01:30.5]} 31. Rb4 {[%clk 0:00:27.7]} 31... Nd2 {[%clk
0:01:22.8]} 32. f3 {[%clk 0:00:20.8]} 32... h5 {[%clk 0:01:13.7]} 33. Kf2 {[%clk
0:00:21.5]} 33... Ra2 {[%clk 0:01:08.3]} 34. Kg3 {[%clk 0:00:21.5]} 34... b2
{[%clk 0:01:06.4]} 35. Nf5 {[%clk 0:00:13.7]} 35... b1=Q {[%clk 0:01:01.7]} 0-1

[Event "*** Titled Tuesday Blitz"]
[Site "Chess.com"]
[Date "2019.03.05"]
[Round "9"]
[White "BIG_Pirate"]
[Black "Blagorod"]
[Result "1-0"]
[WhiteElo "2367"]
[BlackElo "2119"]
[TimeControl "180+2"]
[EndTime "15:12:37 PST"]
[Termination "BIG_Pirate won by resignation"]

1. Nf3 {[%clk 0:03:01.9]} 1... Nc6 {[%clk 0:03:00.1]} 2. d4 {[%clk 0:03:02.5]}
2... d5 {[%clk 0:03:00.8]} 3. Bf4 {[%clk 0:03:03.5]} 3... Bg4 {[%clk 0:03:00.7]}
4. e3 {[%clk 0:03:03.7]} 4... e6 {[%clk 0:03:01]} 5. c4 {[%clk 0:03:01.7]} 5...
Bd6 {[%clk 0:03:00.9]} 6. Bg3 {[%clk 0:03:02.2]} 6... Bb4+ {[%clk 0:02:42.2]} 7.
Nc3 {[%clk 0:03:01.6]} 7... Nf6 {[%clk 0:02:32]} 8. cxd5 {[%clk 0:02:56.7]} 8...
Nxd5 {[%clk 0:02:28]} 9. Rc1 {[%clk 0:02:57.1]} 9... O-O {[%clk 0:02:19]} 10.
Be2 {[%clk 0:02:54.4]} 10... Nce7 {[%clk 0:02:07.5]} 11. Qb3 {[%clk 0:02:51.9]}
11... a5 {[%clk 0:01:48]} 12. O-O {[%clk 0:02:46.9]} 12... c6 {[%clk 0:01:21.5]}
13. a3 {[%clk 0:02:45]} 13... Bxc3 {[%clk 0:01:15.2]} 14. bxc3 {[%clk
0:02:45.3]} 14... b5 {[%clk 0:01:15.2]} 15. a4 {[%clk 0:02:44.1]} 15... b4
{[%clk 0:01:02]} 16. cxb4 {[%clk 0:02:35.9]} 16... axb4 {[%clk 0:00:58.4]} 17.
Bd3 {[%clk 0:02:06.8]} 17... Bxf3 {[%clk 0:00:37.8]} 18. gxf3 {[%clk 0:02:08.7]}
18... Qa5 {[%clk 0:00:36.5]} 19. Ra1 {[%clk 0:02:08.5]} 19... Rfd8 {[%clk
0:00:26.7]} 20. Rfc1 {[%clk 0:02:06.9]} 20... Nc3 {[%clk 0:00:22.1]} 21. Be4
{[%clk 0:00:59.2]} 21... Ne2+ {[%clk 0:00:20.6]} 22. Kg2 {[%clk 0:00:57.9]}
22... Nxc1 {[%clk 0:00:22]} 23. Rxc1 {[%clk 0:00:58.6]} 23... Qxa4 {[%clk
0:00:21.8]} 24. Qb1 {[%clk 0:00:55.8]} 24... b3 {[%clk 0:00:21.5]} 25. Bxh7+
{[%clk 0:00:56.1]} 25... Kh8 {[%clk 0:00:20.6]} 26. Qe4 {[%clk 0:00:48.3]} 26...
b2 {[%clk 0:00:19.2]} 27. Rb1 {[%clk 0:00:39]} 27... Nf5 {[%clk 0:00:12.9]} 28.
Bxf5 {[%clk 0:00:35.2]} 28... exf5 {[%clk 0:00:14]} 29. Qxf5 {[%clk 0:00:34.9]}
29... Qb5 {[%clk 0:00:13.8]} 30. Qxb5 {[%clk 0:00:30.2]} 30... cxb5 {[%clk
0:00:14.5]} 31. Rxb2 {[%clk 0:00:32.1]} 31... Ra5 {[%clk 0:00:15.5]} 32. Bc7
{[%clk 0:00:32.2]} 1-0